Workbook

Sheet Munka1
B2: Rácz Aladár felnőtt rendelő
B3: 24,36 m2 helyiség (SOREA szoba) költségei
B4: 2025.01.01-2025.12.31.
B6: Partner megnevezése | C6: Díj megnevezése | D6: Időszak | E6: Bizonylatszám | F6: Költségek (Ft) | I6: Áfakulcs (%)
F7: Nettó | G7: Áfa | H7: Bruttó
B8: E.ON Energiamegoldások Kft. | C8: Áram | D8: 2025.01.01-2025.01.31. | E8: 831700058642 | F8: 2013 | G8: =F8*0.27 -> 543.51 | H8: =F8+G8 -> 2556.51 | I8: 27
B9: E.ON Energiamegoldások Kft. | C9: Áram | D9: 2025.01.01-2025.01.31. | E9: 831700058643 | F9: 5452 | G9: =F9*0.27 -> 1472.04 | H9: =F9+G9 -> 6924.04 | I9: 27
B10: E.ON Energiamegoldások Kft. | C10: Áram | D10: 2025.02.01-2025.02.28. | E10: 830300204850 | F10: 4118 | G10: 1111.86 | H10: 5229.86 | I10: 27
B11: E.ON Energiamegoldások Kft. | C11: Áram | D11: 2025.02.01-2025.02.28. | E11: 831000076719 | F11: 2077 | G11: 560.79 | H11: 2637.79 | I11: 27
B12: E.ON Energiamegoldások Kft. | C12: Áram | D12: 2025.02.01-2025.02.28. | E12: 831000076720 | F12: 6035 | G12: 1629.45 | H12: 7664.45 | I12: 27
B13: E.ON Energiamegoldások Kft. | C13: Áram | D13: 2025.03.01-2025.03.31. | E13: 830700098517 | F13: 3969 | G13: 1071.63 | H13: 5040.63 | I13: 27
B14: E.ON Energiamegoldások Kft. | C14: Áram | D14: 2025.03.01-2025.03.31. | E14: 834400024958 | F14: 1680 | G14: 453.6 | H14: 2133.6 | I14: 27
B15: E.ON Energiamegoldások Kft. | C15: Áram | D15: 2025.03.01-2025.03.31. | E15: 834400024959 | F15: 4232 | G15: 1142.64 | H15: 5374.64 | I15: 27
B16: E.ON Energiamegoldások Kft. | C16: Áram | D16: 2025.04.01-2025.04.30. | E16: 830500136788 | F16: 3385 | G16: 913.95 | H16: 4298.95 | I16: 27
B17: E.ON Energiamegoldások Kft. | C17: Áram | D17: 2025.04.01-2025.04.30. | E17: 833700032197 | F17: 1497 | G17: 404.19 | H17: 1901.19 | I17: 27
B18: E.ON Energiamegoldások Kft. | C18: Áram | D18: 2025.04.01-2025.04.30. | E18: 833700032198 | F18: 3920 | G18: 1058.4 | H18: 4978.4 | I18: 27
B19: E.ON Energiamegoldások Kft. | C19: Áram | D19: 2025.05.01-2025.05.31. | E19: 830200271649 | F19: 3158 | G19: 852.66 | H19: 4010.66 | I19: 27
B20: E.ON Energiamegoldások Kft. | C20: Áram | D20: 2025.05.01-2025.05.31. | E20: 830000935701 | F20: 3865 | G20: 1043.55 | H20: 4908.55 | I20: 27
B21: E.ON Energiamegoldások Kft. | C21: Áram | D21: 2025.05.01-2025.05.31. | E21: 830000935702 | F21: 1440 | G21: 388.8 | H21: 1828.8 | I21: 27
B22: E.ON Energiamegoldások Kft. | C22: Áram | D22: 2025.06.01-2025.06.30. | E22: 830900085284 | F22: 3674 | G22: 991.98 | H22: 4665.98 | I22: 27
B23: E.ON Energiamegoldások Kft. | C23: Áram | D23: 2025.06.01-2025.06.30. | E23: 833200040307 | F23: 1424 | G23: 384.48 | H23: 1808.48 | I23: 27
B24: E.ON Energiamegoldások Kft. | C24: Áram | D24: 2025.06.01-2025.06.30. | E24: 833200040308 | F24: 3273 | G24: 883.71 | H24: 4156.71 | I24: 27
B25: E.ON Energiamegoldások Kft. | C25: Áram | D25: 2025.08.01-2025.09.30. | E25: 834500026786 | F25: 3765 | G25: 1016.55 | H25: 4781.55 | I25: 27
B26: E.ON Energiamegoldások Kft. | C26: Áram | D26: 2025.08.01-2025.09.30. | E26: 830000965965 | F26: 8985 | G26: 2425.95 | H26: 11410.95 | I26: 27
B27: E.ON Energiamegoldások Kft. | C27: Áram | D27: 2025.10.01-2025.10.31. | E27: 830900089763 | F27: 4478 | G27: 1209.06 | H27: 5687.06 | I27: 27
B28: E.ON Energiamegoldások Kft. | C28: Áram | D28: 2025.10.01-2025.10.31. | E28: 830900089762 | F28: 1878 | G28: 507.06 | H28: 2385.06 | I28: 27
B29: E.ON Energiamegoldások Kft. | C29: Áram | D29: 2025.08.01-2025.11.28. | E29: 833300040711 | F29: 17615 | G29: 4756.05 | H29: 22371.05 | I29: 27
B30: E.ON Energiamegoldások Kft. | C30: Áram | D30: 2025.08.01-2025.11.28. | E30: 833300040710 | F30: 1520 | G30: 410.4 | H30: 1930.4 | I30: 27
B31: E.ON Energiamegoldások Kft. | C31: Áram | D31: 2025.11.29-2025.12.31. | E31: 830400177268 | F31: 8828 | G31: 2383.56 | H31: 11211.56 | I31: 27
B32: E.ON Energiamegoldások Kft. | C32: Áram | D32: 2025.11.29-2025.12.31. | E32: 830400177267 | F32: 2042 | G32: 551.34 | H32: 2593.34 | I32: 27
B33: MVM Next Energiakereskedelmi Zrt. | C33: Gáz | D33: 2024.09.23-2025.09.23 | E33: Több számla-egy elszámolás | F33: 371551 | G33: =F33*0.27 -> 100318.77 | H33: =F33+G33 -> 471869.77 | I33: 27
B34: Fővárosi Vízművek Zrt. | C34: Víz | D34: 2024.12.06-2025.01.03. | E34: 105500514474 | F34: 608 | G34: =F34*0.27 -> 164.16 | H34: =F34+G34 -> 772.16 | I34: 27
B35: Fővárosi Vízművek Zrt. | C35: Víz | D35: 2025.01.04-2025.02.05. | E35: 105500523770 | F35: 608 | G35: =F35*0.27 -> 164.16 | H35: =F35+G35 -> 772.16 | I35: 27
B36: Fővárosi Vízművek Zrt. | C36: Víz | D36: 2025.02.06-2025.03.05. | E36: 102001135906 | F36: 616 | G36: =F36*0.27 -> 166.32 | H36: =F36+G36 -> 782.32 | I36: 27
B37: Fővárosi Vízművek Zrt. | C37: Víz | D37: 2025.03.06-2025.04.07. | E37: 105400277555 | F37: 2449 | G37: 661.23 | H37: 3110.23 | I37: 27
B38: Fővárosi Vízművek Zrt. | C38: Víz | D38: 2025.04.08-2025.05.05. | E38: 104000758738 | F38: 583 | G38: 157.41 | H38: 740.41 | I38: 27
B39: Fővárosi Vízművek Zrt. | C39: Víz | D39: 2025.05.06-2025.06.05. | E39: 105200294384 | F39: 583 | G39: 157.41 | H39: 740.41 | I39: 27
B40: Fővárosi Vízművek Zrt. | C40: Víz | D40: 2025.06.06-2025.07.04. | E40: 103000644519 | F40: 583 | G40: 157.41 | H40: 740.41 | I40: 27
B41: Fővárosi Vízművek Zrt. | C41: Víz | D41: 2025.07.05-2025.08.05. | E41: 104000773707 | F41: 583 | G41: 157.41 | H41: 740.41 | I41: 27
B42: Fővárosi Vízművek Zrt. | C42: Víz | D42: 2025.08.06-2025.09.05. | E42: 105100309331 | F42: 583 | G42: 157.41 | H42: 740.41 | I42: 27
B43: Fővárosi Vízművek Zrt. | C43: Víz | D43: 2025.09.06-2025.10.03. | E43: 102001173228 | F43: 583 | G43: 157.41 | H43: 740.41 | I43: 27
B44: Fővárosi Vízművek Zrt. | C44: Víz | D44: 2025.10.04-2025.11.05. | E44: 103000666277 | F44: 583 | G44: 157.41 | H44: 740.41 | I44: 27
B45: Fővárosi Vízművek Zrt. | C45: Víz | D45: 2025.11.06-2025.12.05. | E45: 105200322830 | F45: 583 | G45: =F45*0.27 -> 157.41 | H45: =F45+G45 -> 740.41 | I45: 27
B46: Fővárosi Csatornázási Művek Zrt. | C46: Csatorna | D46: 2024.12.06-2025.01.03. | E46: 9392SZC25 | F46: 990 | G46: =F46*0.27 -> 267.3 | H46: =F46+G46 -> 1257.3 | I46: 27
B47: Fővárosi Csatornázási Művek Zrt. | C47: Csatorna | D47: 2025.01.04-2025.02.05. | E47: 30006SZC25 | F47: 990 | G47: =F47*0.27 -> 267.3 | H47: =F47+G47 -> 1257.3 | I47: 27
B48: Fővárosi Csatornázási Művek Zrt. | C48: Csatorna | D48: 2025.02.06-2025.03.05. | E48: 51652SZC25 | F48: 1004 | G48: =F48*0.27 -> 271.08 | H48: =F48+G48 -> 1275.08 | I48: 27
B49: Fővárosi Csatornázási Művek Zrt. | C49: Csatorna | D49: 2025.03.06-2025.04.07. | E49: 117138SZC25 | F49: 953 | G49: 257.31 | H49: 1210.31 | I49: 27
B50: Fővárosi Csatornázási Művek Zrt. | C50: Csatorna | D50: 2025.04.08-2025.05.05. | E50: 91265SZC25 | F50: 216 | G50: 58.32 | H50: 274.32 | I50: 27
B51: Fővárosi Csatornázási Művek Zrt. | C51: Csatorna | D51: 2025.05.06-2025.06.05. | E51: 112441SZC25 | F51: 454 | G51: 122.58 | H51: 576.58 | I51: 27
B52: Fővárosi Csatornázási Művek Zrt. | C52: Csatorna | D52: 2025.06.06-2025.07.04. | E52: 133680SZC25 | F52: 953 | G52: 257.31 | H52: 1210.31 | I52: 27
B53: Fővárosi Csatornázási Művek Zrt. | C53: Csatorna | D53: 2025.07.05-2025.08.05. | E53: 153237SZC25 | F53: 953 | G53: 257.31 | H53: 1210.31 | I53: 27
B54: Fővárosi Csatornázási Művek Zrt. | C54: Csatorna | D54: 2025.08.06-2025.09.05. | E54: 170762SZC25 | F54: 953 | G54: 257.31 | H54: 1210.31 | I54: 27
B55: Fővárosi Csatornázási Művek Zrt. | C55: Csatorna | D55: 2025.09.06-2025.10.03. | E55: 192108SZC25 | F55: 953 | G55: 257.31 | H55: 1210.31 | I55: 27
B56: Fővárosi Csatornázási Művek Zrt. | C56: Csatorna | D56: 2025.10.04-2025.11.05. | E56: 215507SZC25 | F56: 953 | G56: =F56*0.27 -> 257.31 | H56: 1210.31 | I56: 27
B57: Fővárosi Csatornázási Művek Zrt. | C57: Csatorna | D57: 2025.11.06-2025.12.05. | E57: 252500SZC25 | F57: 953 | G57: =F57*0.27 -> 257.31 | H57: =F57+G57 -> 1210.31 | I57: 27
B58: Díjbeszedő Holding Zrt. | C58: Hulladékgazdálkodási közszolgáltatás | D58: 2024.12.01-2024.12.31. | E58: 655892407 | F58: 515 | G58: =F58*0.27 -> 139.05 | H58: =F58+G58 -> 654.05 | I58: 27
B59: Díjbeszedő Holding Zrt. | C59: Hulladékgazdálkodási közszolgáltatás | D59: 2025.01.01-2025.01.31. | E59: 657074084 | F59: 515 | G59: =F59*0.27 -> 139.05 | H59: =F59+G59 -> 654.05 | I59: 27
B60: Díjbeszedő Holding Zrt. | C60: Hulladékgazdálkodási közszolgáltatás | D60: 2025.02.01-2025.02.28. | E60: 658001437 | F60: 515 | G60: =F60*0.27 -> 139.05 | H60: =F60+G60 -> 654.05 | I60: 27
B61: Díjbeszedő Holding Zrt. | C61: Hulladékgazdálkodási közszolgáltatás | D61: 2025.03.01-2025.03.31. | E61: 658941016 | F61: 515 | G61: 139.05 | H61: 654.05 | I61: 27
B62: Díjbeszedő Holding Zrt. | C62: Hulladékgazdálkodási közszolgáltatás | D62: 2025.04.01-2025.04.30. | E62: 659744849 | F62: 515 | G62: 139.05 | H62: 654.05 | I62: 27
B63: Díjbeszedő Holding Zrt. | C63: Hulladékgazdálkodási közszolgáltatás | D63: 2025.05.01-2025.05.31. | E63: 660736821 | F63: 515 | G63: 139.05 | H63: 654.05 | I63: 27
B64: Díjbeszedő Holding Zrt. | C64: Hulladékgazdálkodási közszolgáltatás | D64: 2025.06.01-2025.06.30. | E64: 661279999 | F64: 515 | G64: 139.05 | H64: 654.05 | I64: 27
B65: Díjbeszedő Holding Zrt. | C65: Hulladékgazdálkodási közszolgáltatás | D65: 2025.07.01-2025.07.31. | E65: 662246324 | F65: 515 | G65: 139.05 | H65: 654.05 | I65: 27
B66: Díjbeszedő Holding Zrt. | C66: Hulladékgazdálkodási közszolgáltatás | D66: 2025.08.01-2025.08.31. | E66: 663014232 | F66: 515 | G66: 139.05 | H66: 654.05 | I66: 27
B67: Díjbeszedő Holding Zrt. | C67: Hulladékgazdálkodási közszolgáltatás | D67: 2025.09.01-2025.09.30 | E67: 664239861 | F67: 515 | G67: 139.05 | H67: 654.05 | I67: 27
B68: Díjbeszedő Holding Zrt. | C68: Hulladékgazdálkodási közszolgáltatás | D68: 2025.10.01-2025.10.31. | E68: 665126020 | F68: 515 | G68: 139.05 | H68: 654.05 | I68: 27
B69: Díjbeszedő Holding Zrt. | C69: Hulladékgazdálkodási közszolgáltatás | D69: 2025.11.01-2025.11.30. | E69: 665745531 | F69: 515 | G69: 139.05 | H69: 654.05 | I69: 27
B70: SZABADAGAZDA Kft. | C70: Síkosságmentesítés | D70: 2025.01.01-2025.01.31. | E70: SZBDG-2025-709 | F70: 14588 | G70: =F70*0.27 -> 3938.76 | H70: =F70+G70 -> 18526.76 | I70: 27
B71: SZABADAGAZDA Kft. | C71: Síkosságmentesítés | D71: 2025.02.01-2025.02.28. | E71: SZBDG-2025-947 | F71: 14588 | G71: =F71*0.27 -> 3938.76 | H71: =F71+G71 -> 18526.76 | I71: 27
B72: SZABADAGAZDA Kft. | C72: Kertfenntartás | D72: 2025.03.01-2025.03.31. | E72: SZBDG-2025-1207 | F72: 14588 | G72: =F72*0.27 -> 3938.76 | H72: =F72+G72 -> 18526.76 | I72: 27
B73: SZABADAGAZDA Kft. | C73: Kertfenntartás | D73: 2025.04.01-2025.04.30. | E73: SZBDG-2025-1545 | F73: 14588 | G73: 3938.76 | H73: 18526.76 | I73: 27
B74: SZABADAGAZDA Kft. | C74: Kertfenntartás | D74: 2025.05.01-2025.05.31. | E74: SZBDG-2025-1804 | F74: 14588 | G74: 3938.76 | H74: 18526.76 | I74: 27
B75: SZABADAGAZDA Kft. | C75: Kertfenntartás | D75: 2025.06.01-2025.06.30. | E75: SZBDG-2025-2051 | F75: 14588 | G75: 3938.76 | H75: 18526.76 | I75: 27
B76: SZABADAGAZDA Kft. | C76: Kertfenntartás | D76: 2025.07.01-2025.07.31. | E76: SZBDG-2025-2297 | F76: 14588 | G76: 3938.76 | H76: 18526.76 | I76: 27
B77: SZABADAGAZDA Kft. | C77: Kertfenntartás | D77: 2025.08.01-2025.08.31. | E77: SZBDG-2025-2547 | F77: 14588 | G77: 3938.76 | H77: 18526.76 | I77: 27
B78: SZABADAGAZDA Kft. | C78: Kertfenntartás | D78: 2025.09.01-2025.09.30 | E78: SZBDG-2025-2789 | F78: 14588 | G78: 3938.76 | H78: 18526.76 | I78: 27
B79: SZABADAGAZDA Kft. | C79: Kertfenntartás | D79: 2025.10.01-2025.10.31. | E79: SZBDG-2025-3046 | F79: 14588 | G79: 3938.76 | H79: 18526.76 | I79: 27
B80: SZABADAGAZDA Kft. | C80: Kertfenntartás | D80: 2025.11.01-2025.11.30. | E80: SZBDG-2025-3516 | F80: 14588 | G80: 3938.76 | H80: 18526.76 | I80: 27
B81: SZABADAGAZDA Kft. | C81: Kertfenntartás | D81: 2025.12.01-2025.12.31. | E81: SZBDG-2026-327 | F81: 14588 | G81: =F81*0.27 -> 3938.76 | H81: =F81+G81 -> 18526.76 | I81: 27
B82: Magyar Telekom Nyrt. | C82: Riasztóhoz kapcsolódó kiadás | D82: 2025.01.01-2025.01.31. | E82: 5120250001330367 | F82: 430 | G82: 116 | H82: =F82+G82 -> 546 | I82: 27
B83: Magyar Telekom Nyrt. | C83: Riasztóhoz kapcsolódó kiadás | D83: 2025.01.01-2025.01.31. | E83: 5120250001330367 | F83: 266 | G83: 13 | H83: =F83+G83 -> 279 | I83: 5
B84: Magyar Telekom Nyrt. | C84: Riasztóhoz kapcsolódó kiadás | D84: 2025.02.01-2025.02.28. | E84: 5120250004146868 | F84: 550 | G84: 149 | H84: =F84+G84 -> 699 | I84: 27
B85: Magyar Telekom Nyrt. | C85: Riasztóhoz kapcsolódó kiadás | D85: 2025.02.01-2025.02.28. | E85: 5120250004146868 | F85: 288 | G85: 14 | H85: 302 | I85: 5
B86: Magyar Telekom Nyrt. | C86: Riasztóhoz kapcsolódó kiadás | D86: 2025.03.01-2025.03.31. | E86: 5120250005539411 | F86: 550 | G86: 159 | H86: 709 | I86: 27
B87: Magyar Telekom Nyrt. | C87: Riasztóhoz kapcsolódó kiadás | D87: 2025.03.01-2025.03.31. | E87: 5120250005539411 | F87: 288 | G87: 14 | H87: 302 | I87: 5
B88: Magyar Telekom Nyrt. | C88: Riasztóhoz kapcsolódó kiadás | D88: 2025.04.01-2025.04.30. | E88: 5120250006942492 | F88: 565 | G88: 153 | H88: 718 | I88: 27
B89: Magyar Telekom Nyrt. | C89: Riasztóhoz kapcsolódó kiadás | D89: 2025.04.01-2025.04.30. | E89: 5120250006942492 | F89: 295 | G89: 15 | H89: 310 | I89: 5
B90: Magyar Telekom Nyrt. | C90: Riasztóhoz kapcsolódó kiadás | D90: 2025.05.01-2025.05.31. | E90: 5120250008324605 | F90: 570 | G90: 154 | H90: 724 | I90: 27
B91: Magyar Telekom Nyrt. | C91: Riasztóhoz kapcsolódó kiadás | D91: 2025.05.01-2025.05.31. | E91: 5120250008324605 | F91: 298 | G91: 15 | H91: 313 | I91: 5
B92: Magyar Telekom Nyrt. | C92: Riasztóhoz kapcsolódó kiadás | D92: 2025.06.01-2025.06.30. | E92: 5120250009702516 | F92: 570 | G92: 154 | H92: 724 | I92: 27
B93: Magyar Telekom Nyrt. | C93: Riasztóhoz kapcsolódó kiadás | D93: 2025.06.01-2025.06.30. | E93: 5120250009702516 | F93: 298 | G93: 15 | H93: 313 | I93: 5
B94: Magyar Telekom Nyrt. | C94: Riasztóhoz kapcsolódó kiadás | D94: 2025.07.01-2025.07.31. | E94: 5120250011048489 | F94: 570 | G94: 154 | H94: 724 | I94: 27
B95: Magyar Telekom Nyrt. | C95: Riasztóhoz kapcsolódó kiadás | D95: 2025.07.01-2025.07.31. | E95: 5120250011048489 | F95: 298 | G95: 15 | H95: 313 | I95: 5
B96: Magyar Telekom Nyrt. | C96: Riasztóhoz kapcsolódó kiadás | D96: 2025.08.01-2025.08.31. | E96: 5120250012398073 | F96: 570 | G96: 154 | H96: 724 | I96: 27
B97: Magyar Telekom Nyrt. | C97: Riasztóhoz kapcsolódó kiadás | D97: 2025.08.01-2025.08.31. | E97: 5120250012398073 | F97: 298 | G97: 15 | H97: 313 | I97: 5
B98: Magyar Telekom Nyrt. | C98: Riasztóhoz kapcsolódó kiadás | D98: 2025.09.01-2025.09.30. | E98: 5120250013715421 | F98: 570 | G98: 154 | H98: 724 | I98: 27
B99: Magyar Telekom Nyrt. | C99: Riasztóhoz kapcsolódó kiadás | D99: 2025.09.01-2025.09.30. | E99: 5120250013715421 | F99: 298 | G99: 15 | H99: 313 | I99: 5
B100: Magyar Telekom Nyrt. | C100: Riasztóhoz kapcsolódó kiadás | D100: 2025.10.01-2025.10.31. | E100: 5120250015087287 | F100: 570 | G100: 154 | H100: 724 | I100: 27
B101: Magyar Telekom Nyrt. | C101: Riasztóhoz kapcsolódó kiadás | D101: 2025.10.01-2025.10.31. | E101: 5120250015087287 | F101: 298 | G101: 15 | H101: 313 | I101: 5
B102: Magyar Telekom Nyrt. | C102: Riasztóhoz kapcsolódó kiadás | D102: 2025.11.01-2025.11.30. | E102: 5120250016440110 | F102: 570 | G102: 154 | H102: 724 | I102: 27
B103: Magyar Telekom Nyrt. | C103: Riasztóhoz kapcsolódó kiadás | D103: 2025.11.01-2025.11.30. | E103: 5120250016440110 | F103: 298 | G103: 15 | H103: 313 | I103: 5
B104: Magyar Telekom Nyrt. | C104: Riasztóhoz kapcsolódó kiadás | D104: 2025.12.01-2025.12.31. | E104: 5120260001218158 | F104: 570 | G104: 154 | H104: 724 | I104: 27
B105: Magyar Telekom Nyrt. | C105: Riasztóhoz kapcsolódó kiadás | D105: 2025.12.01-2025.12.31. | E105: 5120260001218158 | F105: 298 | G105: 15 | H105: =F105+G105 -> 313 | I105: 5
B106: Lindström Kft. | C106: Szennyfogó szőnyeg bérlet+tisztítás | D106: 2025.01-04.hét | E106: 15997783 | F106: 1543 | G106: 416 | H106: =F106+G106 -> 1959 | I106: 27
B107: Lindström Kft. | C107: Szennyfogó szőnyeg bérlet+tisztítás | D107: 2025.05-08.hét | E107: 16014317 | F107: 1543 | G107: 416 | H107: =F107+G107 -> 1959 | I107: 27
B108: Lindström Kft. | C108: Szennyfogó szőnyeg bérlet+tisztítás | D108: 2025.09-12.hét | E108: 16026581 | F108: 1543 | G108: 416 | H108: =F108+G108 -> 1959 | I108: 27
B109: Lindström Kft. | C109: Szennyfogó szőnyeg bérlet+tisztítás | D109: 2025.13-16.hét | E109: 16042074 | F109: 1637 | G109: 442 | H109: 2079 | I109: 27
B110: Lindström Kft. | C110: Szennyfogó szőnyeg bérlet+tisztítás | D110: 2025.17-20.hét | E110: 16056408 | F110: 1637 | G110: 442 | H110: 2079 | I110: 27
B111: Lindström Kft. | C111: Szennyfogó szőnyeg bérlet+tisztítás | D111: 2025.21-24.hét | E111: 16072809 | F111: 1637 | G111: 442 | H111: 2079 | I111: 27
B112: Lindström Kft. | C112: Szennyfogó szőnyeg bérlet+tisztítás | D112: 2025.25-28.hét | E112: 16087593 | F112: 1637 | G112: 442 | H112: 2079 | I112: 27
B113: Lindström Kft. | C113: Szennyfogó szőnyeg bérlet+tisztítás | D113: 2025.29-32.hét | E113: 16098655 | F113: 1637 | G113: 442 | H113: 2079 | I113: 27
B114: Lindström Kft. | C114: Szennyfogó szőnyeg bérlet+tisztítás | D114: 2025.33-36.hét | E114: 16114325 | F114: 1637 | G114: 442 | H114: 2079 | I114: 27
B115: Lindström Kft. | C115: Szennyfogó szőnyeg bérlet+tisztítás | D115: 2025.37-40.hét | E115: 16128055 | F115: 1637 | G115: 442 | H115: 2079 | I115: 27
B116: Lindström Kft. | C116: Szennyfogó szőnyeg bérlet+tisztítás | D116: 2025.41-44.hét | E116: 16142171 | F116: 1637 | G116: 442 | H116: 2079 | I116: 27
B117: Lindström Kft. | C117: Szennyfogó szőnyeg bérlet+tisztítás | D117: 2025.45-48.hét | E117: 16156490 | F117: 1637 | G117: 442 | H117: 2079 | I117: 27
B118: Lindström Kft. | C118: Szennyfogó szőnyeg bérlet+tisztítás | D118: 2025.49-52.hét | E118: 16219943 | F118: 1637 | G118: 442 | H118: 2079 | I118: 27
B119: Összesen: | F119: =SUM(F8:F118) -> 707555 | G119: =SUM(G8:G118) -> 190275.6 | H119: =SUM(H8:H118) -> 897830.6
